fUSD/lending_fUSD_20250804
["ID","MTS","AMOUNT","RATE_DAILY","PERIOD"]
[377299707,1754323897386,-3925.72,0.00054794,120]
[377299708,1754323897396,-1121.03,0.00054794,120]
[377299709,1754323897407,-675.17,0.00054794,120]
[377299710,1754323897416,-1121.03,0.00054794,120]
[377299711,1754323897426,-1121.03,0.00054794,120]
[377299712,1754323897436,-1622.8,0.00054794,120]
[377299713,1754323897446,-7018.14,0.00054794,120]
[377299714,1754323897456,-1121.03,0.00054794,120]
[377299715,1754323897466,-1121.03,0.00054794,120]
[377299716,1754323897476,-572.7,0.00054794,120]
[377299717,1754323897486,-1121.03,0.00054794,120]
[377299718,1754323897495,-400.0,0.00054794,120]
[377299719,1754323897506,-1121.03,0.00054794,120]
[377299720,1754323897516,-1121.03,0.00054794,120]
[377299721,1754323897526,-2183.43,0.00054794,120]
[377299722,1754323897536,-1121.03,0.00054794,120]
[377299723,1754323897545,-1121.03,0.00054794,120]
[377299724,1754323897560,-1121.03,0.00054794,120]
[377299725,1754323897569,-1121.03,0.00054794,120]
[377299726,1754323897579,-1121.03,0.00054794,120]
[377299727,1754323897589,-1121.03,0.00054794,120]
[377299728,1754323897599,-1121.03,0.00054794,120]
[377299729,1754323897610,-1121.03,0.00054794,120]
[377299730,1754323897619,-400.0,0.00054794,120]
[377299731,1754323897631,-1121.03,0.00054794,120]
[377299732,1754323897640,-1121.03,0.00054794,120]
[377299733,1754323897650,-1121.03,0.00054794,120]
[377299734,1754323897660,-675.89,0.00054794,30]
[377299735,1754323897670,-828.85,0.00054794,120]
[377299736,1754323897680,-2642.9,0.00054794,120]
[377299737,1754323897690,-1121.03,0.00054794,120]
[377299738,1754323897700,-400.0,0.00054794,120]
[377299739,1754323897709,-400.0,0.00054794,120]
[377299740,1754323897720,-1121.05526422,0.00054794,120]
[377299741,1754323897730,-1480.34,0.00054794,120]
[377299742,1754323897743,-831.11,0.00054794,120]
[377299743,1754323897756,-716.66,0.00054794,120]
[377299744,1754323897766,-400.0,0.00054794,120]
[377299745,1754323897776,-667.73,0.00054794,120]
[377299746,1754323897788,-3266.53,0.00054794,120]
[377299747,1754323897799,-2297.79,0.00054794,120]
[377299748,1754323897809,-400.0,0.00054794,120]
[377299749,1754323897820,-1185.47,0.00054794,120]
[377299750,1754323897830,-3172.11,0.00054794,120]
[377299751,1754323897840,-568.5,0.00054794,120]
[377299752,1754323897849,-400.82875154,0.00054794,120]
[377299753,1754323897859,-400.0,0.00054794,120]
[377299754,1754323897869,-1006.35,0.00054794,120]
[377299755,1754323897880,-618.04,0.00054794,120]
[377299756,1754323897889,-400.0,0.00054794,120]
[377299757,1754323897900,-1329.71,0.00054794,120]
[377299758,1754323897911,-400.0,0.00054794,120]
[377299759,1754323897920,-15393.87,0.00054794,120]
[377299760,1754323897931,-6615.27,0.00054794,120]
[377299761,1754323897941,-709.72,0.00054794,120]
[377299762,1754323897951,-400.0,0.00054794,120]
[377299763,1754323897962,-5511.73,0.00054794,120]
[377299764,1754323897973,-400.0,0.00054794,120]
[377299765,1754323897984,-2674.58,0.00054794,120]
[377299766,1754323897994,-1278.68,0.00054794,120]
[377299767,1754323898004,-400.83861552,0.00054794,120]
[377299768,1754323898014,-2143.64,0.00054794,120]
[377299769,1754323898024,-400.0,0.00054794,7]
[377299770,1754323898035,-400.0,0.00054794,120]
[377299771,1754323898045,-987.86,0.00054794,120]
[377299772,1754323898056,-400.0,0.00054794,120]
[377299773,1754323898066,-400.0,0.00054794,120]
[377299774,1754323898075,-1747.21,0.00054794,120]
[377299775,1754323898085,-7059.61,0.00054794,120]
[377299776,1754323898095,-1730.55,0.00054794,120]
[377299777,1754323898105,-6164.38,0.00054794,120]
[377299778,1754323898115,-1254.21,0.00054794,120]
[377299779,1754323898124,-1935.18,0.00054794,2]
[377299780,1754323898134,-1935.18,0.00054794,2]
[377299781,1754323898145,-1935.18,0.00054794,2]
[377299782,1754323898154,-400.0,0.00054794,120]
[377299783,1754323898164,-733.03,0.00054794,120]
[377299784,1754323898174,-1935.18,0.00054794,2]
[377299785,1754323898184,-400.0,0.00054794,120]
[377299786,1754323898194,-400.0,0.00054794,120]
[377299787,1754323898204,-400.0,0.00054794,120]
[377299788,1754323898213,-1935.18,0.00054794,2]
[377299789,1754323898223,-400.0,0.00054794,120]
[377299790,1754323898233,-400.0,0.00054794,120]
[377299791,1754323898243,-1935.18,0.00054794,2]
[377299792,1754323898252,-1935.18,0.00054794,2]
[377299793,1754323898263,-1921.44,0.00054794,120]
[377299794,1754323898272,-1744.67,0.00054794,120]
[377299795,1754323898282,-1935.18,0.00054794,2]
[377299796,1754323898292,-2515.48,0.00054794,120]
[377299797,1754323898305,-1935.18,0.00054794,2]
[377299798,1754323898315,-400.0,0.00054794,120]
[377299799,1754323898329,-918.31,0.00054794,120]
[377299800,1754323898339,-1935.18,0.00054794,2]
[377299801,1754323898349,-1935.18,0.00054794,2]
[377299802,1754323898359,-400.0,0.00054794,120]
[377299803,1754323898369,-1935.18,0.00054794,2]
[377299804,1754323898379,-1935.18,0.00054794,2]
[377299805,1754323898389,-1935.18,0.00054794,2]
[377299806,1754323898399,-1935.18,0.00054794,2]
[377299807,1754323898409,-1935.18,0.00054794,2]
[377299808,1754323898420,-400.0,0.00054794,120]
[377299809,1754323898429,-1935.18,0.00054794,2]
[377299810,1754323898439,-2618.36,0.00054794,120]
[377299811,1754323898449,-1935.18,0.00054794,2]
[377299812,1754323898460,-1935.18,0.00054794,2]
[377299813,1754323898469,-1935.18,0.00054794,2]
[377299814,1754323898479,-4836.36,0.00054794,120]
[377299815,1754323898489,-400.0,0.00054794,120]
[377299816,1754323898499,-1935.18,0.00054794,2]
[377299817,1754323898508,-1935.18,0.00054794,2]
[377299818,1754323898518,-400.0,0.00054794,120]
[377299819,1754323898528,-1935.18,0.00054794,2]
[377299820,1754323898538,-1935.31035247,0.00054794,2]
[377299821,1754323898551,-400.0,0.00054794,120]
[377299822,1754323898563,-1203.6,0.00054794,120]
[377299823,1754323898573,-2656.02,0.00054794,120]
[377299824,1754323898583,-400.0,0.00054794,120]
[377299825,1754323898592,-2551.57,0.00054794,120]
[377299826,1754323898602,-400.0,0.00054794,120]
[377299827,1754323898611,-3972.94,0.00054794,120]
[377299828,1754323898621,-460.0,0.00054794,120]
[377299829,1754323898631,-2165.29,0.00054794,120]
[377299830,1754323898641,-400.87588959,0.00054794,120]
[377299831,1754323898650,-1182.47,0.00054794,120]
[377299832,1754323898659,-400.0,0.00054794,120]
[377299833,1754323898669,-470.31367766,0.00054794,120]
[377299834,1754323898678,-3449.21,0.00054794,120]
[377299835,1754323898688,-2943.24,0.00054794,120]
[377299836,1754323898698,-400.0,0.00054794,120]
[377299837,1754323898712,-693.4,0.00054794,120]
[377299838,1754323898722,-400.0,0.00054794,120]
[377299839,1754323898732,-651.6,0.00054794,120]
[377299840,1754323898742,-559.49,0.00054794,120]
[377299841,1754323898752,-581.04,0.00054794,120]
[377299842,1754323898762,-408.18,0.00054794,120]
[377299843,1754323898772,-736.7,0.00054794,120]
[377299844,1754323898781,-459.83115448,0.00054794,2]
[377299845,1754323898791,-400.0,0.00054794,120]
[377299846,1754323898804,-500.0,0.00054794,120]
[377299847,1754323898814,-500.0,0.00054794,120]
[377299848,1754323898824,-2274.58,0.00054794,120]
[377299849,1754323898834,-500.0,0.00054794,120]
[377299850,1754323898844,-500.0,0.00054794,2]
[377299851,1754323898854,-3115.98,0.00054794,120]
[377299852,1754323898864,-500.0,0.00054794,120]
[377299853,1754323898874,-588.53,0.00054794,120]
[377299854,1754323898884,-500.0,0.00054794,120]
[377299855,1754323898894,-500.0,0.00054794,2]
[377299856,1754323898904,-500.0,0.00054794,120]
[377299857,1754323898914,-500.0,0.00054794,120]
[377299858,1754323898924,-350.57943526,0.00054794,2]
[377299859,1754323898934,-6548.75,0.00054794,120]
[377299860,1754323898944,-500.0,0.00054794,120]
[377299861,1754323898953,-1029.04,0.00054794,120]
[377299862,1754323898963,-500.0,0.00054794,120]
[377299863,1754323898973,-3630.77,0.00054794,120]
[377299864,1754323898983,-500.0,0.00054794,120]
[377299865,1754323898992,-400.0,0.00054794,120]
[377299866,1754323899002,-500.0,0.00054794,120]
[377299867,1754323899012,-500.0,0.00054794,120]
[377299868,1754323899022,-500.0,0.00054794,120]
[377299869,1754323899033,-778.18,0.00054794,120]
[377299870,1754323899043,-400.0,0.00054794,120]
[377299871,1754323899059,-500.0,0.00054794,120]
[377299872,1754323899069,-500.0,0.00054794,120]
[377299873,1754323899078,-6671.0,0.00054794,120]
[377299874,1754323899089,-500.0,0.00054794,120]
[377299875,1754323899098,-500.0,0.00054794,120]
[377299876,1754323899108,-476.99,0.00054794,120]
[377299877,1754323899117,-400.0,0.00054794,120]
[377299878,1754323899128,-500.0,0.00054794,120]
[377299879,1754323899137,-500.0,0.00054794,120]
[377299880,1754323899147,-500.0,0.00054794,120]
[377299881,1754323899157,-500.0,0.00054794,120]
[377299882,1754323899167,-500.0,0.00054794,120]
[377299883,1754323899176,-514.75949246,0.00054794,120]
[377299884,1754323899186,-400.0,0.00054794,120]
[377299885,1754323899196,-400.0,0.00054794,120]
[377299886,1754323899205,-400.0,0.00054794,120]
[377299887,1754323899215,-653.71,0.00054794,120]
[377299888,1754323899224,-400.0,0.00054794,120]
[377299889,1754323899234,-400.0,0.00054794,120]
[377299890,1754323899243,-2379.99,0.00054794,120]
[377299891,1754323899253,-1587.43,0.00054794,120]
[377299892,1754323899263,-2724.06,0.00054794,120]
[377299893,1754323899273,-848.8,0.00054794,120]
[377299894,1754323899283,-400.0,0.00054794,120]
[377299895,1754323899293,-400.0,0.00054794,120]
[377299896,1754323899303,-400.0,0.00054794,120]
[377299897,1754323899312,-400.0,0.00054794,120]
[377299898,1754323899322,-1452.69,0.00054794,120]
[377299899,1754323899336,-10511.84,0.00054794,120]
[377299900,1754323899346,-3113.09,0.00054794,120]
[377299901,1754323899356,-400.0,0.00054794,120]
[377299902,1754323899366,-1067.72,0.00054794,120]
[377299903,1754323899376,-5409.77,0.00054794,120]
[377299904,1754323899385,-152.66806661,0.00054794,120]
[377299905,1754323899395,-7724.34,0.00054794,120]
[377299906,1754323899406,-2674.99,0.00054794,120]
[377299907,1754323899415,-473.17,0.00054794,120]
[377299908,1754323899426,-400.0,0.00054794,120]
[377299909,1754323899436,-400.0,0.00054794,120]
[377299910,1754323899445,-4704.3,0.00054794,120]
[377299911,1754323899455,-828.12,0.00054794,120]
[377299912,1754323899465,-400.0,0.00054794,120]
[377299913,1754323899475,-400.0,0.00054794,120]
[377299914,1754323899582,-400.0,0.00054794,30]
[377299915,1754323899593,-400.0,0.00054794,120]
[377299916,1754323899603,-4633.03,0.00054794,120]
[377299917,1754323899612,-400.0,0.00054794,120]
[377299918,1754323899622,-400.0,0.00054794,120]
[377299919,1754323899632,-400.0,0.00054794,120]
[377299920,1754323899641,-861.55,0.00054794,120]
[377299921,1754323899651,-3203.21,0.00054794,120]
[377299922,1754323899660,-400.0,0.00054794,120]
[377299923,1754323899670,-1344.15,0.00054794,120]
[377299924,1754323899679,-2294.68,0.00054794,120]
[377299925,1754323899688,-598.66,0.00054794,120]
[377299926,1754323899698,-3791.97,0.00054794,120]
[377299927,1754323899708,-2781.47,0.00054794,120]
[377299928,1754323899718,-850.37,0.00054794,120]
[377299929,1754323899728,-13418.28,0.00054794,120]
[377299930,1754323899739,-400.0,0.00054794,120]
[377299931,1754323899749,-400.0,0.00054794,120]
[377299932,1754323899759,-400.0,0.00054794,120]
[377299933,1754323899769,-500.0,0.00054794,120]
[377299934,1754323899779,-500.0,0.00054794,120]
[377299935,1754323899789,-500.0,0.00054794,120]
[377299936,1754323899799,-400.0,0.00054794,120]
[377299937,1754323899809,-400.0,0.00054794,120]
[377299938,1754323899819,-500.0,0.00054794,120]
[377299939,1754323899829,-1064.62,0.00054794,120]
[377299940,1754323899839,-6745.1,0.00054794,120]
[377299941,1754323899848,-500.0,0.00054794,120]
[377299942,1754323899858,-500.0,0.00054794,120]
[377299943,1754323899868,-500.0,0.00054794,120]
[377299944,1754323899877,-14639.91,0.00054794,120]
[377299945,1754323899886,-500.0,0.00054794,120]
[377299946,1754323899896,-500.0,0.00054794,120]
[377299947,1754323899906,-500.0,0.00054794,120]
[377299948,1754323899916,-500.0,0.00054794,120]
[377299949,1754323899925,-400.0,0.00054794,120]
[377299950,1754323899935,-500.0,0.00054794,120]
[377299951,1754323899945,-253.17554095,0.00054794,120]
[377299952,1754323899955,-400.0,0.00054794,120]
[377299953,1754323899964,-1003.51,0.00054794,120]
[377299954,1754323899974,-465.48508397,0.00054794,120]
[377299955,1754323899984,-2768.99,0.00054794,120]
[377299956,1754323899994,-2068.74,0.00054794,120]
[377299957,1754323900003,-973.73,0.00054794,120]
[377299958,1754323900013,-400.0,0.00054794,120]
[377299959,1754323900023,-4547.39,0.00054794,120]
[377299960,1754323900032,-400.0,0.00054794,120]
[377299961,1754323900042,-400.0,0.00054794,120]
[377299962,1754323900052,-400.0,0.00054794,120]
[377299963,1754323900062,-2575.01,0.00054794,120]
[377299964,1754323900071,-1724.68,0.00054794,120]
[377299965,1754323900081,-512.08,0.00054794,120]
[377299966,1754323900090,-411.62,0.00054794,120]
[377299967,1754323900100,-3502.25,0.00054794,120]
[377299968,1754323900110,-1113.68,0.00054794,120]
[377299969,1754323900120,-2917.71,0.00054794,120]
[377299970,1754323900130,-2958.52,0.00054794,120]
[377299971,1754323900140,-7019.01,0.00054794,120]
[377299972,1754323900149,-400.0,0.00054794,120]
[377299973,1754323900159,-400.0,0.00054794,120]
[377299974,1754323900168,-400.0,0.00054794,120]
[377299975,1754323900177,-400.0,0.00054794,120]
[377299976,1754323900188,-400.0,0.00054794,120]
[377299977,1754323900197,-400.0,0.00054794,120]
[377299978,1754323900207,-400.0,0.00054794,120]
[377299979,1754323900216,-400.0,0.00054794,120]
[377299980,1754323900226,-1005.03,0.00054794,120]
[377299981,1754323900236,-400.0,0.00054794,120]
[377299982,1754323900245,-924.95,0.00054794,120]
[377299983,1754323900255,-1517.29,0.00054794,120]
[377299984,1754323900264,-3965.55,0.00054794,120]
[377299985,1754323900273,-400.0,0.00054794,120]
[377299986,1754323900283,-400.0,0.00054794,120]
[377299987,1754323900293,-400.0,0.00054794,120]
[377299988,1754323900302,-401.93,0.00054794,120]
[377299989,1754323900312,-4251.02,0.00054794,120]
[377299990,1754323900321,-525.61,0.00054794,120]
[377299991,1754323900335,-412.23,0.00054794,120]
[377299992,1754323900345,-400.0,0.00054794,120]
[377299993,1754323900355,-400.0,0.00054794,120]
[377299994,1754323900366,-499.73,0.00054794,120]
[377299995,1754323900375,-4697.17,0.00054794,120]
[377299996,1754323900385,-733.44,0.00054794,120]
[377299997,1754323900394,-400.0,0.00054794,120]
[377299998,1754323900405,-539.82,0.00054794,120]
[377299999,1754323900416,-819.6,0.00054794,120]
[377300000,1754323900425,-400.0,0.00054794,120]
[377300001,1754323900435,-458.85,0.00054794,120]
[377300002,1754323900444,-400.0,0.00054794,120]
[377300003,1754323900454,-400.0,0.00054794,120]
[377300004,1754323900463,-5610.48,0.00054794,120]
[377300005,1754323900471,-2473.21,0.00054794,120]
[377300006,1754323900479,-400.0,0.00054794,120]
[377300007,1754323900488,-1520.66,0.00054794,120]
[377300008,1754323900497,-2513.98,0.00054794,120]
[377300009,1754323900506,-462.85,0.00054794,120]
[377300010,1754323900514,-400.0,0.00054794,120]
[377300011,1754323900523,-400.0,0.00054794,120]
[377300012,1754323900531,-2039.14,0.00054794,120]
[377300013,1754323900541,-400.0,0.00054794,120]
[377300014,1754323900551,-775.25,0.00054794,120]
[377300015,1754323900561,-4380.81,0.00054794,120]
[377300016,1754323900571,-400.0,0.00054794,120]
[377300017,1754323900581,-2194.39,0.00054794,120]
[377300018,1754323900591,-8816.93,0.00054794,120]
[377300019,1754323900600,-800.66,0.00054794,120]
[377300020,1754323900609,-4740.24,0.00054794,120]
[377300021,1754323900619,-2869.41,0.00054794,120]
[377300022,1754323900628,-400.0,0.00054794,120]
[377300023,1754323900637,-523.64,0.00054794,120]
[377300024,1754323900646,-966.57,0.00054794,120]
[377300025,1754323900656,-400.0,0.00054794,120]
[377300026,1754323900665,-536.44,0.00054794,120]
[377300027,1754323900676,-1110.13,0.00054794,120]
[377300028,1754323900685,-400.0,0.00054794,120]
[377300029,1754323900696,-400.0,0.00054794,120]
[377300030,1754323900706,-400.0,0.00054794,120]
[377300031,1754323900715,-3259.22,0.00054794,120]
[377300032,1754323900725,-400.0,0.00054794,120]
[377300033,1754323900735,-4746.93,0.00054794,120]
[377300034,1754323900745,-400.0,0.00054794,120]
[377300035,1754323900754,-400.0,0.00054794,120]
[377300036,1754323900763,-522.02,0.00054794,120]
[377300037,1754323900771,-400.0,0.00054794,120]
[377300038,1754323900781,-2092.33,0.00054794,120]
[377300039,1754323900790,-400.0,0.00054794,120]
[377300040,1754323900800,-400.0,0.00054794,120]
[377300041,1754323900809,-2577.67,0.00054794,120]
[377300042,1754323900820,-400.0,0.00054794,120]
[377300043,1754323900829,-11418.16,0.00054794,120]
[377300044,1754323900839,-400.0,0.00054794,120]
[377300045,1754323900849,-1148.98,0.00054794,120]
[377300046,1754323900859,-643.36,0.00054794,120]
[377300047,1754323900869,-400.0,0.00054794,120]
[377300048,1754323900879,-5819.46,0.00054794,120]
[377300049,1754323900890,-1848.74,0.00054794,120]
[377300050,1754323900899,-484.79,0.00054794,120]
[377300051,1754323900909,-400.38,0.00054794,120]
[377300052,1754323900919,-400.0,0.00054794,120]
[377300053,1754323900929,-4678.12,0.00054794,120]
[377300054,1754323900938,-400.0,0.00054794,120]
[377300055,1754323900948,-400.0,0.00054794,120]
[377300056,1754323900957,-2818.86,0.00054794,120]
[377300057,1754323900967,-400.0,0.00054794,120]
[377300058,1754323900976,-400.0,0.00054794,120]
[377300059,1754323900986,-400.0,0.00054794,120]
[377300060,1754323900996,-400.0,0.00054794,120]
[377300061,1754323901006,-1886.54,0.00054794,120]
[377300062,1754323901016,-400.0,0.00054794,120]
[377300063,1754323901026,-2185.12,0.00054794,120]
[377300064,1754323901035,-1803.86,0.00054794,120]
[377300065,1754323901045,-400.0,0.00054794,120]
[377300066,1754323901056,-400.0,0.00054794,120]
[377300067,1754323901065,-151.0,0.00054794,120]
[377300068,1754323901074,-400.0,0.00054794,120]
[377300069,1754323901084,-2089.44,0.00054794,120]
[377300070,1754323901094,-2865.94,0.00054794,120]
[377300071,1754323901104,-492.852847,0.00054794,120]
[377300072,1754323901113,-521.04902,0.00054794,120]
[377300073,1754323901123,-1153.22,0.00054794,60]
[377300074,1754323901133,-400.0,0.00054794,120]
[377300075,1754323901142,-155.198883,0.00054794,120]
[377300076,1754323901152,-400.0,0.00054794,120]
[377300077,1754323901161,-2738.98,0.00054794,120]
[377300078,1754323901171,-466.75,0.00054794,120]
[377300079,1754323901180,-3454.06,0.00054794,120]
[377300080,1754323901189,-400.0,0.00054794,120]
[377300081,1754323901199,-400.0,0.00054794,120]
[377300082,1754323901209,-4114.12,0.00054794,120]
[377300083,1754323901218,-400.0,0.00054794,120]
[377300084,1754323901228,-500.0,0.00054794,30]
[377300085,1754323901237,-500.0,0.00054794,30]
[377300086,1754323901247,-400.0,0.00054794,120]
[377300087,1754323901256,-492.85285,0.00054794,120]
[377300088,1754323901265,-400.0,0.00054794,120]
[377300089,1754323901275,-150.481174,0.00054794,120]
[377300090,1754323901285,-1530.11,0.00054794,120]
[377300091,1754323901294,-3129.79,0.00054794,120]
[377300092,1754323901305,-400.0,0.00054794,120]
[377300093,1754323901315,-500.0,0.00054794,30]
[377300094,1754323901325,-500.0,0.00054794,30]
[377300095,1754323901338,-594.22,0.00054794,120]
[377300096,1754323901347,-1164.13,0.00054794,120]
[377300097,1754323901357,-500.0,0.00054794,30]
[377300098,1754323901366,-400.0,0.00054794,120]
[377300099,1754323901376,-2764.26,0.00054794,120]
[377300100,1754323901386,-500.0,0.00054794,30]
[377300101,1754323901395,-744.45,0.00054794,120]
[377300102,1754323901406,-400.0,0.00054794,120]
[377300103,1754323901415,-400.0,0.00054794,120]
[377300104,1754323901423,-400.0,0.00054794,120]
[377300105,1754323901433,-500.0,0.00054794,30]
[377300106,1754323901443,-500.0,0.00054794,30]
[377300107,1754323901453,-817.9,0.00054794,120]
[377300108,1754323901463,-500.0,0.00054794,30]
[377300109,1754323901472,-500.0,0.00054794,30]
[377300110,1754323901481,-500.0,0.00054794,30]
[377300111,1754323901491,-4863.67,0.00054794,120]
[377300112,1754323901501,-500.0,0.00054794,30]
[377300113,1754323901510,-1777.9,0.00054794,120]
[377300114,1754323901519,-400.0,0.00054794,120]
[377300115,1754323901529,-3115.26,0.00054794,120]
[377300116,1754323901538,-162.609261,0.00054794,120]
[377300117,1754323901548,-500.0,0.00054794,30]
[377300118,1754323901557,-500.0,0.00054794,30]
[377300119,1754323901566,-500.0,0.00054794,30]
[377300120,1754323901576,-400.0,0.00054794,120]
[377300121,1754323901586,-500.0,0.00054794,30]
[377300122,1754323901595,-500.0,0.00054794,30]
[377300123,1754323901604,-10007.6,0.00054794,120]
[377300124,1754323901614,-500.0,0.00054794,30]
[377300125,1754323901623,-400.0,0.00054794,120]
[377300126,1754323901632,-393.43901714,0.00054794,30]
[377300127,1754323901642,-2336.71,0.00054794,120]
[377300128,1754323901652,-11258.53,0.00054794,120]
[377300129,1754323901661,-1165.32,0.00054794,120]
[377300130,1754323901671,-6025.88,0.00054794,120]
[377300131,1754323901681,-400.0,0.00054794,120]
[377300132,1754323901691,-829.59,0.00054794,120]
[377300133,1754323901701,-400.0,0.00054794,120]
[377300134,1754323901711,-1301.07,0.00054794,120]
[377300135,1754323901721,-1387.33,0.00054794,120]
[377300136,1754323901731,-3625.78,0.00054794,120]
[377300137,1754323901741,-855.36,0.00054794,120]
[377300138,1754323901751,-12315.19,0.00054794,120]
[377300139,1754323901762,-402.87,0.00054794,120]
[377300140,1754323901772,-2998.47,0.00054794,120]
[377300141,1754323901781,-400.0,0.00054794,120]
[377300142,1754323901793,-803.34,0.00054794,120]
[377300143,1754323901804,-728.76,0.00054794,120]
[377300144,1754323901814,-462.71431637,0.00054794,120]
[377300145,1754323901824,-400.0,0.00054794,120]
[377300146,1754323901834,-728.76,0.00054794,120]
[377300147,1754323901844,-400.0,0.00054794,120]
[377300148,1754323901854,-400.0,0.00054794,120]
[377300149,1754323901863,-728.76,0.00054794,120]
[377300150,1754323901873,-400.0,0.00054794,120]
[377300151,1754323901883,-728.76,0.00054794,120]
[377300152,1754323901893,-400.0,0.00054794,120]
[377300153,1754323901903,-728.76,0.00054794,120]
[377300154,1754323901914,-728.76,0.00054794,120]
[377300155,1754323901924,-728.76,0.00054794,120]
[377300156,1754323901935,-1023.76,0.00054794,120]
[377300157,1754323901946,-728.76,0.00054794,120]
[377300158,1754323901956,-728.76,0.00054794,120]
[377300159,1754323901967,-728.76,0.00054794,120]
[377300160,1754323901978,-1951.44,0.00054794,120]
[377300161,1754323901988,-400.0,0.00054794,120]
[377300162,1754323901998,-728.76,0.00054794,120]
[377300163,1754323902008,-728.76,0.00054794,120]
[377300164,1754323902018,-3258.52,0.00054794,120]
[377300165,1754323902028,-728.76,0.00054794,120]
[377300166,1754323902038,-153.009744,0.00054794,120]
[377300167,1754323902049,-400.0,0.00054794,120]
[377300168,1754323902059,-400.0,0.00054794,120]
[377300169,1754323902069,-728.76,0.00054794,120]
[377300170,1754323902080,-1402.693651,0.00054794,120]
[377300171,1754323902090,-360.017213,0.00054794,120]
[377300172,1754323902101,-728.76,0.00054794,120]
[377300173,1754323902111,-728.76,0.00054794,120]
[377300174,1754323902123,-400.0,0.00054794,120]
[377300175,1754323902132,-2463.16,0.00054794,120]
[377300176,1754323902143,-7069.17,0.00054794,120]
[377300177,1754323902153,-728.76,0.00054794,120]
[377300178,1754323902163,-728.76,0.00054794,120]
[377300179,1754323902173,-728.76,0.00054794,120]
[377300180,1754323902183,-728.76,0.00054794,120]
[377300181,1754323902192,-728.76,0.00054794,120]
[377300182,1754323902202,-728.76,0.00054794,120]
[377300183,1754323902212,-728.76,0.00054794,120]
[377300184,1754323902221,-746.6,0.00054794,120]
[377300185,1754323902231,-728.91092621,0.00054794,120]
[377300186,1754323902242,-400.0,0.00054794,120]
[377300187,1754323902251,-5596.4,0.00054794,120]
[377300188,1754323902262,-6374.51,0.00054794,120]
[377300189,1754323902271,-488.08,0.00054794,120]
[377300190,1754323902282,-360.017208,0.00054794,120]
[377300191,1754323902292,-2819.52,0.00054794,120]
[377300192,1754323902303,-400.0,0.00054794,120]
[377300193,1754323902313,-2821.0,0.00054794,120]
[377300194,1754323902324,-1402.693649,0.00054794,120]
[377300195,1754323902337,-663.06,0.00054794,120]
[377300196,1754323902347,-400.0,0.00054794,120]
[377300197,1754323902358,-1842.64,0.00054794,120]
[377300198,1754323902368,-1300.62,0.00054794,120]
[377300199,1754323902378,-400.0,0.00054794,120]
[377300200,1754323902388,-3256.83,0.00054794,120]
[377300201,1754323902399,-4107.21,0.00054794,120]
[377300202,1754323902411,-152.668546,0.00054794,120]
[377300203,1754323902422,-400.0,0.00054794,120]
[377300204,1754323902432,-1557.98,0.00054794,120]
[377300205,1754323902442,-400.0,0.00054794,120]
[377300206,1754323902452,-3234.55,0.00054794,120]